bitfinex/quotes_ETHUSD_20251012
["timestamp","ask_amount","ask_price","bid_price","bid_amount"]
[1760234595298,0.001,3732.1,3731.6,3.31341562]
[1760234595493,0.001,3732.1,3731.6,0.6336]
[1760234595742,0.001,3732.1,3731.6,3.31341562]
[1760234596328,1.92,3731.9,3731.6,0.6336]
[1760234596529,0.4468,3732.1,3731.6,0.6336]
[1760234596774,0.4468,3732.1,3730.5,2.68054905]
[1760234596775,0.4468,3731.7,3729.0,2.68162371]
[1760234596925,0.1336,3731.3,3730.4,0.6336]
[1760234597137,0.4468,3731.7,3730.4,0.97791826]
[1760234597436,0.1336,3730.6,3730.5,0.6336]
[1760234597636,0.1336,3730.6,3730.5,3.31420581]
[1760234597851,0.1336,3730.6,3730.5,3.76950581]
[1760234598160,0.1336,3730.9,3730.8,0.6336]
[1760234598365,0.001,3731.7,3731.3,0.6336]
[1760234598546,0.001,3731.7,3731.3,3.31361587]
[1760234598762,0.001,3731.7,3731.5,3.31343002]
[1760234598964,0.001,3731.7,3730.9,0.6336]
[1760234599125,0.001,3731.7,3731.6,3.31341562]
[1760234599529,0.001,3731.7,3731.6,3.76871562]
[1760234601479,0.001,3731.7,3731.6,0.6336]
[1760234601764,0.001,3731.7,3731.6,3.31341562]
[1760234601929,0.4468,3731.7,3731.6,0.6336]
[1760234602139,0.4468,3731.7,3730.4,0.4553]
[1760234602364,1.92,3731.6,3730.8,2.6803843]
[1760234602564,1.92,3731.6,3730.9,2.68030761]
[1760234602781,0.001,3731.7,3731.0,2.68018365]
[1760234603078,0.001,3731.7,3731.2,2.68006787]
[1760234603234,0.001,3731.7,3731.4,0.6336]
[1760234603438,0.001,3731.7,3731.6,3.31341562]
[1760234604050,0.001,3731.7,3731.6,3.78171562]
[1760234604678,0.001,3731.7,3731.6,0.6336]
[1760234604868,1.921,3731.7,3731.6,0.6336]
[1760234605172,0.4758,3731.7,3729.5,2.68132428]
[1760234605375,4.25352,3731.6,3730.1,2.68084783]
[1760234605574,1.92,3730.9,3729.4,3.27845101]
[1760234605743,1.92,3730.9,3730.2,0.6336]
[1760234606078,0.4748,3731.5,3729.5,0.7961451]
[1760234606376,2.6804062,3730.8,3729.5,0.7961451]
[1760234606684,0.001,3731.7,3730.2,2.68081909]
[1760234606685,0.4748,3730.9,3730.2,2.68081909]
[1760234606841,2.68010028,3731.3,3729.4,0.1288]
[1760234606842,1.92,3731.3,3730.5,2.68058919]
[1760234607038,2.68004638,3731.3,3730.6,0.6336]
[1760234607260,2.67981562,3731.6,3730.8,0.6336]
[1760234607464,1.92,3731.5,3730.8,3.31398782]
[1760234607667,0.001,3731.7,3730.3,0.6336]
[1760234607938,0.001,3731.7,3731.2,3.31370054]
[1760234608169,1.92,3731.5,3730.3,0.6336]
[1760234608475,2.67981753,3731.6,3731.1,0.6336]
[1760234608476,1.92,3731.6,3731.1,0.6336]
[1760234608641,0.001,3731.7,3731.1,3.31376997]
[1760234608836,1.921,3731.7,3731.1,0.6336]
[1760234609087,0.4748,3731.6,3731.1,0.6336]
[1760234609270,1.92,3731.6,3731.0,0.6336]
[1760234609587,1.921,3731.7,3731.0,0.6336]
[1760234609737,0.4748,3731.6,3731.0,0.6336]
[1760234610137,0.001,3731.7,3730.6,1.1019]
[1760234610370,0.001,3731.7,3728.8,12.77054267]
[1760234610371,0.001,3731.7,3731.2,0.6336]
[1760234610859,0.001,3731.7,3731.6,0.6336]
[1760234611092,0.001,3731.7,3731.4,0.6336]
[1760234611266,0.001,3731.7,3731.4,3.31352721]
[1760234611700,0.001,3731.7,3731.6,0.6336]
[1760234611887,0.001,3731.7,3731.6,3.31341562]
[1760234612213,0.1336,3731.6,3731.5,0.6336]
[1760234612402,0.001,3731.7,3731.5,0.6336]
[1760234613002,0.1336,3731.5,3731.4,0.6336]
[1760234613391,0.1336,3731.5,3731.2,3.31368155]
[1760234613574,0.001,3731.7,3731.4,0.6336]
[1760234613906,0.001,3731.7,3731.5,0.6336]
[1760234614304,0.1336,3731.5,3730.7,0.6336]
[1760234614507,0.1336,3731.3,3731.2,3.31370291]
[1760234615220,0.1346,3731.7,3731.6,3.31341562]
[1760234615770,0.001,3731.7,3731.6,3.78171562]
[1760234616519,0.001,3731.7,3731.6,3.91531562]
[1760234618730,0.001,3731.7,3731.2,0.5993899]
[1760234618942,0.001,3731.7,3731.4,2.67989886]
[1760234619097,0.001,3731.7,3731.5,3.31347647]
[1760234619699,0.001,3731.7,3731.1,0.1336]
[1760234619902,0.1336,3731.3,3730.7,0.1336]
[1760234620104,0.1336,3731.3,3731.2,3.31370291]
[1760234620303,0.1336,3731.3,3731.2,3.78200291]
[1760234620511,0.1336,3731.3,3731.2,3.31370291]
[1760234620693,0.1336,3731.3,3731.2,0.6336]
[1760234621153,0.1336,3731.3,3730.7,0.1336]
[1760234621432,0.1336,3730.7,3730.1,0.4545]
[1760234621633,0.1336,3730.7,3730.5,0.6336]
[1760234621935,0.6634,3731.7,3729.6,0.002]
[1760234621936,9.612097,3731.6,3729.6,0.002]
[1760234622099,0.1336,3729.9,3729.6,0.002]
[1760234622298,0.1336,3729.9,3729.6,2.68323626]
[1760234622523,0.4295,3730.6,3729.6,0.002]
[1760234622733,1.92,3730.4,3729.6,0.002]
[1760234623034,0.4295,3730.6,3729.6,0.002]
[1760234623035,1.92,3730.6,3729.6,0.002]
[1760234623206,1.92,3730.8,3729.9,2.68100288]
[1760234623538,1.92,3730.6,3730.0,0.6336]
[1760234623731,2.3495,3730.6,3729.6,0.002]
[1760234624033,0.4295,3730.6,3729.6,0.002]
[1760234624332,2.68111438,3729.8,3729.6,0.002]
[1760234624735,4.60118079,3729.7,3729.6,0.002]
[1760234625036,5.03068079,3729.7,3729.6,0.002]
[1760234625534,15.25665579,3729.7,3729.6,0.002]
[1760234625740,5.45123462,3729.7,3729.6,0.002]
[1760234625908,2.77005383,3729.7,3729.6,0.002]
[1760234626131,2.34055383,3729.7,3729.6,0.002]
[1760234626331,1.92,3729.7,3729.6,0.002]
[1760234626637,13.27607379,3729.7,3729.6,0.002]
[1760234626835,5.03068079,3729.7,3729.6,0.002]
[1760234627860,2.3495,3729.7,3729.6,0.002]
[1760234628022,5.03068079,3729.7,3729.6,0.002]
[1760234629635,1.92,3729.7,3729.6,0.002]
[1760234630161,2.3495,3729.7,3729.6,0.002]
[1760234630729,5.03068079,3729.7,3729.6,0.002]
[1760234632065,8.90256437,3729.3,3729.2,0.002]
[1760234632271,4.60146837,3729.3,3729.2,0.002]
[1760234632465,7.03936137,3729.3,3729.2,0.002]
[1760234632879,5.03096837,3729.3,3729.2,0.002]
[1760234633388,8.04793937,3729.3,3729.2,0.002]
[1760234633557,8.46856456,3729.3,3729.2,0.002]
[1760234633761,5.45159356,3729.3,3729.2,0.002]
[1760234633962,2.77012519,3729.3,3729.2,0.002]
[1760234634158,5.45159356,3729.3,3729.2,0.002]
[1760234634392,2.77012519,3729.3,3729.2,0.002]
[1760234634554,5.03096837,3729.3,3729.2,0.002]
[1760234635464,11.38870637,3729.3,3729.2,0.002]
[1760234635668,2.368,3729.3,3729.2,0.002]
[1760234635980,5.04946837,3729.3,3729.2,0.002]
[1760234636155,1.92,3729.3,3729.2,0.002]
[1760234636768,2.68119162,3729.7,3729.2,0.002]
[1760234636951,0.4205682,3729.9,3729.2,0.002]
[1760234637158,2.68080678,3730.3,3729.5,0.6336]
[1760234637384,2.68080678,3730.3,3729.5,3.31491191]
[1760234637857,2.68077277,3730.3,3729.6,0.6336]
[1760234638188,2.68024187,3731.1,3730.1,0.6336]
[1760234638189,0.448,3731.1,3730.1,0.6336]
[1760234638500,0.001,3731.3,3730.3,0.6336]
[1760234638651,1.921,3731.3,3730.7,0.6336]
[1760234638848,0.001,3731.3,3730.6,0.6336]
[1760234639169,2.68067767,3730.4,3728.4,0.4463]
[1760234639484,1.92,3729.5,3728.4,0.4463]
[1760234639675,1.92,3729.5,3728.6,2.68195967]
[1760234639993,1.92,3729.7,3729.0,2.68167929]
[1760234640199,0.2232,3729.8,3729.1,0.6336]
[1760234640351,0.448,3729.7,3729.1,0.6336]
[1760234640556,1.92,3730.1,3729.4,2.68139414]
[1760234640770,1.92,3730.1,3729.2,0.002]
[1760234640771,2.68122795,3729.7,3729.2,0.002]
[1760234640999,1.92,3729.7,3729.2,0.002]
[1760234641211,0.448,3729.6,3729.2,0.002]
[1760234641562,0.448,3729.6,3729.2,0.6356]
[1760234641964,1.92,3729.3,3729.2,0.002]
[1760234642287,0.42054629,3730.3,3729.2,0.002]
[1760234642495,1.92,3729.6,3729.2,0.002]
[1760234642702,4.60146837,3729.3,3729.2,0.002]
[1760234642871,6.73946837,3729.3,3729.2,0.002]
[1760234643191,4.60175601,3728.9,3728.8,0.002]
[1760234643714,5.04975601,3728.9,3728.8,0.002]
[1760234644410,8.00068601,3728.9,3728.8,0.002]
[1760234644607,5.04975601,3728.9,3728.8,0.002]
[1760234644914,23.88980301,3728.9,3728.8,0.002]
[1760234645202,14.30100101,3728.9,3728.8,0.002]
[1760234645364,14.72167221,3728.9,3728.8,0.002]
[1760234645991,15.00503121,3728.9,3728.8,0.002]
[1760234646400,15.00503121,3728.9,3725.5,0.4463]
[1760234646401,14.624315,3728.7,3725.5,0.4463]
[1760234646611,2.68307966,3727.1,3725.5,0.4463]
[1760234646907,4.60314183,3727.0,3726.3,0.6336]
[1760234647091,1.92,3726.9,3726.3,0.6336]
[1760234647316,1.92,3727.0,3726.4,0.6336]
[1760234647504,0.6712,3727.3,3725.5,3.13047358]
[1760234647505,2.68297999,3727.2,3725.5,3.13047358]
[1760234647823,0.2232,3727.3,3725.5,0.31314736]
[1760234647824,0.448,3726.9,3725.5,0.31314736]
[1760234648004,1.92,3726.4,3725.5,2.68420346]
[1760234648200,1.92,3727.1,3725.4,0.001]
[1760234648425,1.92,3726.3,3725.4,0.001]
[1760234648681,0.448,3726.5,3725.6,2.68412269]
[1760234648888,0.448,3726.5,3725.7,0.6336]
[1760234649182,1.92,3726.7,3725.9,2.68389744]
[1760234649383,5.47206298,3726.9,3725.8,0.6336]
[1760234649682,1.92,3726.7,3725.9,2.68391433]
[1760234649849,2.68334231,3726.7,3725.9,2.68391433]
[1760234650231,0.1336,3725.9,3725.8,3.31758733]
[1760234650549,0.1336,3725.9,3725.8,3.76388733]
[1760234650885,0.14052793,3726.6,3726.5,0.6336]
[1760234651180,0.14052793,3726.6,3726.5,3.31708316]
[1760234651531,0.14052793,3726.6,3726.5,0.6336]
[1760234652127,0.14052793,3726.6,3726.5,3.31708316]
[1760234652330,0.14052793,3726.6,3726.5,3.93867308]
[1760234652531,0.2232,3728.4,3726.6,0.6336]
[1760234652752,0.2232,3728.4,3726.5,1.66258992]
[1760234652753,0.448,3728.7,3726.8,0.6336]
[1760234653038,0.14049089,3728.7,3728.3,0.6336]
[1760234653263,0.448,3728.6,3726.8,0.4074]
[1760234653464,0.448,3728.6,3727.1,0.6336]
[1760234653763,2.6822931,3728.2,3727.4,0.6336]
[1760234653972,0.448,3728.1,3726.2,0.6226]
[1760234654267,1.92,3727.2,3726.4,2.68348971]
[1760234654473,2.68321048,3726.9,3725.5,0.4074]
[1760234654655,0.448,3727.1,3725.5,0.4074]
[1760234654656,2.368,3727.1,3726.3,2.6835729]
[1760234654962,2.368,3727.1,3726.4,0.6336]
[1760234655174,0.448,3727.7,3726.8,0.6336]
[1760234655346,1.92,3727.5,3726.8,0.6336]
[1760234655740,1.92,3727.6,3726.9,0.6336]
[1760234655940,0.448,3727.7,3726.9,2.6831766]
[1760234656238,0.2232,3727.9,3726.4,0.60009426]
[1760234656239,2.6829299,3727.3,3726.4,0.60009426]
[1760234656458,1.92,3727.1,3726.5,0.6336]
[1760234656632,3.13098166,3727.2,3725.9,0.4074]
[1760234656633,1.92,3727.2,3725.9,0.4074]
[1760234656838,0.448,3727.8,3726.1,0.6336]
[1760234657066,0.42076543,3728.1,3726.3,0.6336]
[1760234657268,0.448,3728.0,3726.2,0.4074]
[1760234657468,1.92,3727.6,3726.8,0.6336]
[1760234657666,0.2232,3727.9,3727.0,2.68311415]
[1760234657965,0.2232,3727.9,3726.9,2.68318226]
[1760234658165,0.2232,3727.9,3726.7,0.6336]
[1760234658166,2.1432,3727.9,3726.7,0.6336]
[1760234658473,1.92,3727.6,3726.7,0.6336]
[1760234658769,1.92,3727.6,3726.9,0.6336]
[1760234659066,0.448,3727.8,3726.9,2.68319514]
[1760234659274,1.92,3727.8,3726.1,0.4821]
[1760234659437,1.92,3726.9,3725.5,2.68420346]
[1760234659637,0.448,3727.8,3725.7,2.68405937]
[1760234659965,0.448,3727.8,3725.6,0.71666035]
[1760234659966,1.92,3727.5,3726.7,2.68328472]
[1760234660151,1.92,3727.5,3726.8,0.6336]
[1760234660352,0.448,3727.7,3726.8,0.6336]
[1760234660569,0.448,3727.7,3727.3,0.6336]
[1760234660867,1.92,3728.1,3727.2,0.6336]
[1760234661083,0.42075349,3728.7,3727.1,0.6336]
[1760234661084,1.92,3727.7,3727.1,0.6336]
[1760234661372,2.1432,3727.9,3727.3,2.6829065]
[1760234661576,0.448,3728.0,3727.5,2.68275007]
[1760234661868,0.448,3728.0,3727.4,2.68283522]
[1760234662269,1.92,3728.3,3727.4,0.53657768]
[1760234662470,0.448,3728.7,3728.0,0.6336]
[1760234662669,3.12990611,3728.7,3728.0,0.6336]
[1760234662839,0.1336,3728.0,3726.2,0.4074]
[1760234663039,0.4686,3728.1,3727.6,0.6336]
[1760234663271,0.4686,3728.0,3727.1,0.6336]
[1760234663597,0.4686,3727.9,3726.6,0.6336]
[1760234663770,0.4686,3727.9,3727.2,2.68296002]
[1760234664069,0.4686,3727.9,3727.1,2.68304226]
[1760234664275,1.92,3727.7,3727.0,3.31672003]
[1760234664446,0.237,3727.8,3726.9,0.6336]
[1760234664646,0.237,3727.8,3727.2,2.68292045]
[1760234665172,0.4686,3727.9,3726.8,0.6336]
[1760234665372,0.237,3727.8,3726.8,0.6336]
[1760234665574,0.237,3727.8,3727.2,0.6336]
[1760234665954,0.4686,3728.8,3727.3,0.6336]
[1760234666162,0.4686,3728.8,3728.2,0.6336]
[1760234666347,2.68141408,3729.4,3728.2,0.6336]
[1760234666348,2.68168628,3729.0,3728.3,2.68216395]
[1760234666543,0.4686,3729.1,3728.1,0.6336]
[1760234666881,0.4686,3729.1,3728.6,2.68197016]
[1760234667081,0.4686,3729.1,3728.5,2.68201067]
[1760234667394,0.4686,3729.1,3728.3,0.6336]
[1760234667598,2.3886,3729.1,3728.5,0.6336]
[1760234667978,0.001,3728.7,3728.5,0.6336]
[1760234668175,0.001,3728.7,3728.5,2.68204238]
[1760234668379,0.001,3728.7,3728.5,2.68203863]
[1760234669700,0.001,3728.7,3728.6,3.31557178]
[1760234670266,0.001,3728.7,3728.6,3.91534439]
[1760234671370,0.001,3728.7,3728.6,4.32274439]
[1760234672304,0.001,3728.7,3728.6,3.91534439]
[1760234673617,0.1336,3728.6,3728.5,3.31564371]
[1760234673787,0.001,3728.7,3728.6,0.6336]
[1760234674302,2.68205104,3728.5,3726.8,0.4074]
[1760234674506,0.1336,3728.6,3728.0,2.68234652]
[1760234674707,0.1336,3728.0,3727.1,0.541]
[1760234674926,1.92,3728.6,3728.0,0.6336]
[1760234675077,0.1336,3727.7,3727.2,0.32241022]
[1760234675280,0.1336,3727.7,3727.1,0.541]
[1760234675281,1.92,3728.3,3727.6,2.68267353]
[1760234675507,1.92,3728.3,3727.5,2.68271565]
[1760234675693,2.3886,3728.4,3727.5,2.68271565]
[1760234676003,2.3886,3728.4,3727.7,2.68256351]
[1760234676205,0.001,3728.7,3728.0,2.682352]
[1760234676414,1.921,3728.7,3728.0,2.682352]
[1760234676609,1.92,3728.6,3728.3,2.68212029]
[1760234676780,0.001,3728.7,3728.6,3.31557178]
[1760234677592,0.4696,3728.7,3727.1,0.4074]
[1760234677939,1.92,3728.6,3728.1,0.6336]
[1760234678084,3.15066306,3728.5,3728.1,0.6336]
[1760234678278,0.4686,3728.4,3727.6,3.31628869]
[1760234678506,0.4686,3728.4,3728.0,0.6336]
[1760234678913,0.4686,3728.3,3727.9,0.6336]
[1760234679117,0.4686,3728.3,3727.9,3.31606349]
[1760234679916,0.4686,3728.2,3725.4,0.001]
[1760234680119,1.92,3728.1,3726.1,0.4821]
[1760234680320,3.15091942,3728.2,3727.0,2.68305995]
[1760234680321,4.60249528,3727.9,3727.0,2.68305995]
[1760234680533,2.68256105,3727.8,3726.9,2.68312976]
[1760234680714,1.92,3727.7,3727.0,2.68307211]
[1760234680903,1.92,3727.5,3726.7,2.68333914]
[1760234681104,1.92,3727.5,3726.8,3.31685548]
[1760234681286,1.92,3727.6,3727.0,0.6336]
[1760234681489,1.92,3727.6,3726.9,2.68315864]
[1760234681985,2.68269646,3727.6,3726.9,2.68315864]
[1760234682228,2.68269646,3727.6,3727.0,0.6336]
[1760234682428,2.68269646,3727.6,3726.9,3.31679457]
[1760234682632,1.92,3727.5,3726.9,3.31679457]
[1760234683128,1.92,3727.5,3727.0,0.6336]
[1760234683324,2.3718,3727.5,3727.0,0.6336]
[1760234683698,0.4518,3727.4,3726.9,0.6336]
[1760234683916,0.4518,3727.3,3726.9,0.6336]
[1760234684127,0.4518,3727.3,3726.9,3.31678466]
[1760234685338,0.4518,3727.3,3726.8,0.6336]
[1760234685339,0.1336,3726.9,3726.8,0.6336]
[1760234685541,0.4518,3727.3,3726.8,0.6336]
[1760234685836,0.4518,3727.3,3726.9,0.6336]
[1760234686044,1.92,3727.6,3726.9,0.6336]
[1760234686209,3.13460107,3727.5,3726.6,0.002]
[1760234686546,1.92,3727.4,3726.8,0.6336]
[1760234686828,1.92,3727.4,3726.9,0.6336]
[1760234687017,0.4518,3727.3,3726.9,3.31678417]
[1760234687729,0.4518,3727.3,3726.9,0.6336]
[1760234687929,0.1336,3726.9,3726.6,0.002]
[1760234688131,0.1336,3726.8,3726.6,0.002]
[1760234688317,0.42079313,3727.4,3726.6,0.002]
[1760234688631,0.4518,3728.6,3726.8,0.6336]
[1760234688830,2.68175821,3728.9,3728.2,0.6336]
[1760234689003,2.68175821,3728.9,3727.9,2.6824733]
[1760234689004,2.3718,3728.6,3728.0,0.6336]
[1760234689422,0.4518,3728.5,3727.7,2.68254871]
[1760234689727,0.4518,3728.5,3727.8,0.6336]
[1760234689728,1.92,3728.4,3727.8,0.6336]
[1760234690500,0.4518,3728.5,3727.8,2.68253095]
[1760234690705,0.001,3728.7,3728.0,0.6336]
[1760234691129,0.001,3728.7,3728.5,2.68197731]
[1760234691335,0.001,3728.7,3728.4,0.6336]
[1760234691535,0.001,3728.7,3728.6,2.68197178]
[1760234691739,0.001,3728.7,3728.6,3.31557178]
[1760234691924,0.001,3728.7,3728.6,3.97869968]
[1760234692126,0.001,3728.7,3728.6,4.38609968]
[1760234692332,0.001,3728.7,3728.6,1.2967279]
[1760234692535,0.001,3728.7,3728.6,3.31557178]
[1760234693116,0.001,3728.7,3728.4,0.6336]
[1760234693717,0.4348,3728.6,3727.9,2.68243896]
[1760234693847,0.4348,3728.6,3727.5,0.6336]
[1760234694161,0.4348,3728.6,3728.1,0.6336]
[1760234694367,0.001,3728.7,3728.6,3.31557178]
[1760234694562,0.001,3728.7,3728.6,3.72297178]
[1760234694931,0.001,3729.1,3729.0,3.31528409]
[1760234695332,0.001,3729.1,3729.0,3.72168409]
[1760234695550,0.001,3729.1,3729.0,4.36203079]
[1760234696750,1e-08,3729.7,3729.6,3.31485268]
[1760234697257,1e-08,3729.7,3729.6,3.72125268]
[1760234698244,1e-08,3729.7,3729.6,3.85485268]
[1760234698532,1e-08,3729.7,3729.6,4.50847759]
[1760234698951,1e-08,3729.7,3729.6,4.10207759]
[1760234699833,1e-08,3729.7,3729.6,0.65362491]
[1760234700139,1e-08,3729.7,3729.6,2.68125268]
[1760234700335,0.1336,3729.6,3729.5,0.6336]
[1760234700534,0.1336,3729.6,3728.9,2.81530282]
[1760234700729,0.1336,3729.5,3728.9,0.1336]
[1760234701044,1e-08,3729.7,3728.1,0.33160031]
[1760234701265,1e-08,3729.7,3729.1,2.68155582]
[1760234701457,0.1336,3729.1,3729.0,3.31528168]
[1760234701656,0.1336,3729.1,3728.8,2.68179643]
[1760234701657,0.1336,3729.1,3728.5,0.1336]
[1760234701857,1.92000001,3729.7,3727.5,2.68275806]
[1760234702055,0.4348,3729.0,3728.3,2.68218369]
[1760234702275,0.1336,3728.3,3728.2,2.68225373]
[1760234703087,0.1336,3728.3,3728.2,3.31585373]
[1760234703287,0.1336,3728.6,3727.9,0.1336]
[1760234703490,0.1336,3728.2,3728.1,2.68226874]
[1760234703652,0.1336,3728.2,3728.1,3.31586874]
[1760234703855,0.1336,3728.2,3727.3,0.4064]
[1760234703856,2.0536,3728.2,3726.9,0.4064]
[1760234704168,13.087222,3729.3,3726.2,2.6856538]
[1760234704169,0.1336,3727.5,3726.4,2.68354548]
[1760234704363,1.92,3728.3,3727.5,2.68273902]
[1760234704565,0.1336,3727.4,3726.6,0.44479455]
[1760234704778,2.68269127,3727.6,3726.6,0.002]
[1760234704997,0.4348,3727.8,3726.6,0.002]
[1760234705169,0.4348,3727.5,3726.6,0.002]
[1760234705481,1.92,3727.1,3726.6,0.002]
[1760234705652,2.68333914,3726.7,3726.6,0.002]
[1760234705857,4.60333914,3726.7,3726.6,0.002]
[1760234706293,5.03813914,3726.7,3726.6,0.002]
[1760234708061,19.02837614,3726.7,3726.6,0.002]
[1760234708355,14.8219592,3726.7,3726.6,0.002]
[1760234708686,9.0313222,3726.7,3726.6,0.002]
[1760234708885,8.61043814,3726.7,3726.6,0.002]
[1760234709090,7.10663814,3726.7,3726.6,0.002]
[1760234709291,2.3548,3726.7,3726.6,0.002]
[1760234709995,1.92,3726.7,3726.6,0.002]
[1760234710361,2.3548,3726.7,3726.6,0.002]
[1760234710659,5.03813914,3726.7,3726.6,0.002]
[1760234711810,2.3548,3726.7,3726.6,0.002]
[1760234712168,1.92,3726.7,3726.6,0.002]
[1760234712573,2.3548,3726.7,3726.6,0.002]
[1760234713093,0.2308,3727.9,3726.6,0.002]
[1760234713401,2.3548,3727.3,3726.6,0.002]
[1760234713564,0.4348,3727.3,3726.9,2.68317519]
[1760234713763,2.68254734,3727.8,3726.8,2.68325662]
[1760234713963,0.85559002,3727.8,3726.6,0.002]
[1760234714202,0.4348,3727.8,3727.3,0.6336]
[1760234714398,0.42075333,3727.9,3727.3,2.68290719]
[1760234714591,0.42075333,3727.9,3727.4,0.6336]
[1760234714791,0.4348,3728.3,3727.3,0.6336]
[1760234714992,0.4348,3728.2,3726.6,0.002]
[1760234715206,0.2308,3727.4,3726.6,0.6356]
[1760234715577,3.11771818,3727.3,3726.6,0.6356]
[1760234715792,1.92,3727.5,3726.8,0.6336]
[1760234716007,0.1336,3726.7,3726.6,2.68541115]
[1760234716324,3.11723529,3728.0,3726.7,0.6336]
[1760234716527,3.1172472,3728.0,3727.2,2.68297595]
[1760234716729,1.92,3727.9,3727.2,2.68297595]
[1760234716917,1.92,3727.9,3726.8,0.6336]
[1760234716918,2.0536,3727.2,3727.0,0.6336]
[1760234717119,0.4348,3727.5,3726.7,0.6336]
[1760234717418,1.92,3727.1,3726.6,0.002]
[1760234717722,0.1336,3726.7,3726.6,0.002]
[1760234718124,5.17173914,3726.7,3726.6,0.002]
[1760234718518,13.94027314,3726.7,3726.6,0.002]
[1760234718696,24.40531314,3726.7,3726.2,0.002]
[1760234718896,2.68362719,3726.3,3726.2,0.002]
[1760234719092,4.60362719,3726.3,3726.2,0.002]
[1760234719336,5.03842719,3726.3,3726.2,0.002]
[1760234719935,14.09464729,3725.9,3725.8,0.002]
[1760234720246,11.46942729,3725.9,3725.8,0.002]
[1760234720543,11.90422729,3725.9,3725.8,0.002]
[1760234721430,5.26951529,3725.9,3725.8,0.002]
[1760234721747,3.0065804,3725.9,3725.8,0.002]
[1760234721898,2.3409804,3725.9,3725.8,0.002]
[1760234722098,1.92,3725.9,3725.8,0.002]
[1760234722346,0.4348,3726.3,3725.8,0.002]
[1760234722635,0.4348,3726.8,3726.2,0.6336]
[1760234722939,0.1336,3726.2,3726.1,0.6336]
[1760234723232,1.92,3726.0,3725.8,0.002]
[1760234723430,0.4536,3726.1,3725.8,0.002]
[1760234723735,0.4536,3726.3,3725.8,0.002]
[1760234724151,0.2308,3727.1,3725.8,0.002]
[1760234724152,1.92,3726.1,3725.8,0.002]
[1760234724328,0.4536,3726.2,3725.8,0.002]
[1760234724509,0.4536,3726.0,3725.8,0.002]
[1760234724708,4.60391529,3725.9,3725.8,0.002]
[1760234725050,4.60420346,3725.5,3725.4,0.001]
[1760234725407,5.05780346,3725.5,3725.4,0.001]
[1760234726504,2.3736,3725.5,3725.4,0.001]
[1760234726908,5.05780346,3725.5,3725.4,0.001]
[1760234727143,2.3736,3725.5,3725.4,0.001]
[1760234727348,3.13717285,3726.4,3725.4,0.001]
[1760234727508,0.4536,3726.4,3725.4,0.001]
[1760234727710,1.92,3726.1,3725.4,0.001]
[1760234728011,1.92,3726.1,3725.4,2.68525818]
[1760234728212,0.4536,3726.4,3725.4,0.001]
[1760234728408,1.92,3726.3,3725.6,0.6336]
[1760234728607,1.92,3726.3,3725.6,3.31772732]
[1760234729059,2.3736,3726.2,3725.4,0.001]
[1760234729356,4.60420346,3725.5,3725.4,0.001]
[1760234729941,5.05780346,3725.5,3725.4,0.001]
[1760234731206,2.3736,3725.5,3725.4,0.001]
[1760234731441,5.05780346,3725.5,3725.4,0.001]
[1760234731872,8.42760746,3725.5,3725.4,0.001]
[1760234732346,8.84864587,3725.5,3725.4,0.001]
[1760234732747,10.14771287,3725.5,3725.4,0.001]
[1760234733448,5.47884187,3725.5,3725.4,0.001]
[1760234733765,3.13780346,3725.5,3725.4,0.001]
[1760234734842,12.03351846,3725.5,3725.4,0.001]
[1760234735069,11.80251846,3725.5,3725.4,0.001]
[1760234735670,5.05780346,3725.5,3725.4,0.001]
[1760234735881,10.58631346,3725.5,3725.4,0.001]
[1760234736971,12.80696508,3725.5,3725.4,0.001]
[1760234737371,7.86445308,3725.5,3725.4,0.001]
[1760234737670,14.83723569,3725.1,3725.0,1e-08]
[1760234737875,14.11514498,3724.7,3724.6,0.002]
[1760234738046,13.50743698,3724.7,3724.6,0.002]
[1760234738248,14.38218945,3724.7,3724.6,0.002]
[1760234738449,14.38218945,3724.7,3721.7,0.4084]
[1760234738450,0.1336,3724.6,3721.7,0.5402]
[1760234738655,1.92,3722.9,3722.0,2.68667615]
[1760234738859,0.1336,3722.0,3721.9,2.68679975]
[1760234739062,0.1336,3722.0,3721.9,3.09719975]
[1760234740279,0.1336,3722.0,3721.9,3.73079975]
[1760234740483,1.92,3723.2,3723.0,2.68598132]
[1760234740783,0.1336,3722.9,3722.8,2.6861502]
[1760234741084,0.2275,3724.5,3722.9,0.6336]
[1760234741261,0.222,3724.9,3724.0,0.6336]
[1760234741466,1.92,3724.6,3723.8,0.6336]
[1760234741674,3.1224087,3724.7,3723.8,0.6336]
[1760234741980,0.85870016,3724.7,3724.3,0.6336]
[1760234742182,12.81676954,3726.0,3724.0,0.6336]
[1760234742183,0.4376,3724.6,3724.0,0.6336]
[1760234742613,0.4376,3724.6,3723.9,0.6336]
[1760234742990,0.4376,3725.0,3724.1,2.68515109]
[1760234743285,2.68504458,3724.4,3722.9,2.68603196]
[1760234743590,0.4376,3724.3,3723.8,2.68540769]
[1760234743811,2.3576,3724.7,3723.9,2.68535674]
[1760234744087,2.3576,3724.7,3723.9,2.6853389]
[1760234744260,2.3576,3724.7,3724.0,0.6336]
[1760234744461,0.4376,3724.7,3724.0,0.33189389]
[1760234744678,3.12215939,3725.1,3724.1,0.6336]
[1760234744885,0.4210882,3725.2,3724.3,0.6336]
[1760234745055,2.68458136,3725.0,3724.3,0.6336]